Department Family,Entity,Date,Expense Type,Expense Area,Supplier,Transaction Number,Amount,Document Total 
Department of Health,East Sussex Healthcare NHS Trust,01/03/2023,PROFESSIONAL FEES,Corporate Services,LIAISON FINANCIAL SERVICES LTD,1494883,4891.45,"119,025.93"
Department of Health,East Sussex Healthcare NHS Trust,01/03/2023,AGENCY DIRECT ENGAGEMENT,Other Central,LIAISON FINANCIAL SERVICES LTD,1494883,113156.19,"119,025.93"
Department of Health,East Sussex Healthcare NHS Trust,02/03/2023,NHS SUPPLY CHAIN CREDITORS,Cross Site,NHS SUPPLY CHAIN,158470,208101.21,"208,101.21"
Department of Health,East Sussex Healthcare NHS Trust,02/03/2023,BLOOD PRODUCTS - NBS ST CONTRA,Integrated Care,NHS BLOOD AND TRANSPLANT (NHSBT),158484,68498.37,"68,498.37"
Department of Health,East Sussex Healthcare NHS Trust,02/03/2023,NHS SUPPLY CHAIN CREDITORS,Cross Site,NHS SUPPLY CHAIN,158493,156412.21,"156,412.21"
Department of Health,East Sussex Healthcare NHS Trust,02/03/2023,NHS SUPPLY CHAIN CREDITORS,Cross Site,NHS SUPPLY CHAIN,158494,157704.9,"157,704.90"
Department of Health,East Sussex Healthcare NHS Trust,02/03/2023,SR UNIVERSITY HOSPS SUSSEX FT,Integrated Care,UNIVERSITY HOSPITALS SUSSEX  NHS FT,158496,44411.25,"44,411.25"
Department of Health,East Sussex Healthcare NHS Trust,02/03/2023,CONT.MAIN-MED & SURG EQUIP,Integrated Care,NHS SUPPLY CHAIN (MAIDSTONE),158518,54199,"65,038.80"
Department of Health,East Sussex Healthcare NHS Trust,02/03/2023,NHS SUPPLY CHAIN CREDITORS,Cross Site,NHS SUPPLY CHAIN,158528,151760.45,"151,760.45"
Department of Health,East Sussex Healthcare NHS Trust,02/03/2023,CAPITAL EXPENDITURE TRANSPORT,Other Central,SOUTHERN COMMERCIAL SALES LTD,1494054,38274,"38,274.00"
Department of Health,East Sussex Healthcare NHS Trust,02/03/2023,COMPUTER MAINT - SOFTWARE,Corporate Services,BRITISH TELECOMMUNICATIONS PLC,1494073,145008.53,"174,010.24"
Department of Health,East Sussex Healthcare NHS Trust,02/03/2023,CAPITAL EXPEND BUILDINGS,Other Central,PD HARRIS LTD,1494104,48370.8,"58,044.96"
Department of Health,East Sussex Healthcare NHS Trust,02/03/2023,CAPITAL EXPEND BUILDINGS,Other Central,INTEGRATED HEALTH PROJECTS,1494105,500000,"600,000.00"
Department of Health,East Sussex Healthcare NHS Trust,02/03/2023,CAPITAL EXPEND BUILDINGS,Other Central,BOOKER & BEST LIMITED,1494165,33266.88,"39,920.26"
Department of Health,East Sussex Healthcare NHS Trust,02/03/2023,STOCK-ASCRIBE CONQUEST,Pharmacy Stock,ALLOGA UK LTD,1756444,-54000,"-54,000.00"
Department of Health,East Sussex Healthcare NHS Trust,02/03/2023,STOCK-ASCRIBE EDGH,Pharmacy Stock,ALLOGA UK LTD,1757962,35552.09,"35,552.09"
Department of Health,East Sussex Healthcare NHS Trust,02/03/2023,STOCK-ASCRIBE EDGH,Pharmacy Stock,ALLOGA UK LTD,13143846,30600,"30,600.00"
Department of Health,East Sussex Healthcare NHS Trust,02/03/2023,STOCK-ASCRIBE CONQUEST,Pharmacy Stock,ALLOGA UK LTD,13143912,29365,"29,365.00"
Department of Health,East Sussex Healthcare NHS Trust,02/03/2023,PROFESSIONAL FEES,Corporate Services,CLOUD 21,26086469,28995,"34,794.00"
Department of Health,East Sussex Healthcare NHS Trust,02/03/2023,COMPUTER MAINT - SOFTWARE,Corporate Services,KHIPU NETWORKS LTD,26088895,35503.92,"35,503.92"
Department of Health,East Sussex Healthcare NHS Trust,02/03/2023,CAPITAL EXPEND PLANT&MACHINERY,Other Central,CARDIAC SERVICES (UK) LTD,26088948,268008.6,"268,008.60"
Department of Health,East Sussex Healthcare NHS Trust,02/03/2023,CAPITAL EXPEND I.T.,Other Central,TELEFONICA TECH UK LIMITED,26089129,60092.34,"72,110.81"
Department of Health,East Sussex Healthcare NHS Trust,02/03/2023,CONTRACTED-OUT H.CARE SERVICES,Integrated Care,MEDICA REPORTING LTD,26089178,29828,"29,828.00"
Department of Health,East Sussex Healthcare NHS Trust,02/03/2023,CONTRACTED-OUT H.CARE SERVICES,Integrated Care,MEDICAL IMAGING PARTNERSHIP LTD,26089215,120803.12,"144,963.75"
Department of Health,East Sussex Healthcare NHS Trust,02/03/2023,TESTS SENT TO NON NHS LABS,Integrated Care,SYNNOVIS,26089498,61907.47,"61,907.47"
Department of Health,East Sussex Healthcare NHS Trust,02/03/2023,CAPITAL EXPEND PLANT&MACHINERY,Other Central,FUJIFILM SONOSITE LTD,26089518,105086.4,"105,086.40"
Department of Health,East Sussex Healthcare NHS Trust,02/03/2023,PROFESSIONAL FEES,Corporate Services,CLOUD 21,26089598,463737,"556,484.39"
Department of Health,East Sussex Healthcare NHS Trust,02/03/2023,CONTRACT-SECURITY,Commercial,CONTINENTAL FACILITIES MANAGEMENT GROUP,26090475,35641.08,"42,769.29"
Department of Health,East Sussex Healthcare NHS Trust,02/03/2023,GENERAL CHEMICALS,Integrated Care,CEPHEID UK LTD,26090674,52320,"52,320.00"
Department of Health,East Sussex Healthcare NHS Trust,02/03/2023,AGENCY NURSE - UNQUALIFIED,Integrated Care,MINERVA NURSING,80078827,51352.1,"60,676.10"
Department of Health,East Sussex Healthcare NHS Trust,02/03/2023,AGENCY ADMIN & CLERICAL,Corporate Services,HUNTER HEALTHCARE RESOURCING LTD,80078862,31680,"31,680.00"
Department of Health,East Sussex Healthcare NHS Trust,02/03/2023,AGENCY NURSE - UNQUALIFIED,Integrated Care,MINERVA NURSING,80079012,55253.48,"65,509.88"
Department of Health,East Sussex Healthcare NHS Trust,02/03/2023,AGENCY NURSE - UNQUALIFIED,Integrated Care,MINERVA NURSING,80079059,50316.88,"59,640.88"
Department of Health,East Sussex Healthcare NHS Trust,02/03/2023,AGENCY NURSE - UNQUALIFIED,Integrated Care,MINERVA NURSING,80079390,55698.64,"66,221.44"
Department of Health,East Sussex Healthcare NHS Trust,08/03/2023,APPRENTICESHIP LEVY,Corporate Services,LIAISON FINANCIAL SERVICES LTD,1494884,1809,"124,822.60"
Department of Health,East Sussex Healthcare NHS Trust,08/03/2023,PROFESSIONAL FEES,Corporate Services,LIAISON FINANCIAL SERVICES LTD,1494884,5053.13,"124,822.60"
Department of Health,East Sussex Healthcare NHS Trust,08/03/2023,AGENCY DIRECT ENGAGEMENT,Other Central,LIAISON FINANCIAL SERVICES LTD,1494884,116949.84,"124,822.60"
Department of Health,East Sussex Healthcare NHS Trust,08/03/2023,PURCHASING CARDS,Cross Site,LLOYDS TSB CORPORATE MARKETS,1494885,49111.14,"49,111.14"
Department of Health,East Sussex Healthcare NHS Trust,09/03/2023,SR UNIVERSITY HOSPS SUSSEX FT,Integrated Care,UNIVERSITY HOSPITALS SUSSEX  NHS FT,158345,36708.75,"36,708.75"
Department of Health,East Sussex Healthcare NHS Trust,09/03/2023,SR UNIVERSITY HOSPS SUSSEX FT,Integrated Care,UNIVERSITY HOSPITALS SUSSEX  NHS FT,158346,40803.75,"40,803.75"
Department of Health,East Sussex Healthcare NHS Trust,09/03/2023,SA-FPC REF FP10S,Cross Site,NHS BUSINESS SERVICES AUTHORITY,158420,86424.67,"86,424.67"
Department of Health,East Sussex Healthcare NHS Trust,09/03/2023,CONT MAINT LAB EQUIPMENT,Other Central,NHS SUPPLY CHAIN (MAIDSTONE),158549,56829.44,"68,195.33"
Department of Health,East Sussex Healthcare NHS Trust,09/03/2023,CONT.MAIN-MED & SURG EQUIP,Integrated Care,NHS SUPPLY CHAIN (MAIDSTONE),158552,71400.08,"85,680.10"
Department of Health,East Sussex Healthcare NHS Trust,09/03/2023,CONT.MAIN-MED & SURG EQUIP,Commercial,NHS SUPPLY CHAIN (MAIDSTONE),158553,685705.27,"822,846.12"
Department of Health,East Sussex Healthcare NHS Trust,09/03/2023,CONTRACTED-OUT H.CARE SERVICES,Integrated Care,MEDICA REPORTING LTD,1493546,55130,"55,130.00"
Department of Health,East Sussex Healthcare NHS Trust,09/03/2023,CAPITAL EXPEND BUILDINGS,Other Central,EASTBOURNE ELECTRICAL LLP,1494384,27178.83,"32,614.60"
Department of Health,East Sussex Healthcare NHS Trust,09/03/2023,CAPITAL EXPEND BUILDINGS,Other Central,EASTBOURNE ELECTRICAL LLP,1494385,33880.73,"77,140.91"
Department of Health,East Sussex Healthcare NHS Trust,09/03/2023,CAPITAL EXPEND BUILDINGS,Other Central,EASTBOURNE ELECTRICAL LLP,1494385,30403.37,"77,140.91"
Department of Health,East Sussex Healthcare NHS Trust,09/03/2023,CAPITAL EXPEND BUILDINGS,Other Central,EASTBOURNE ELECTRICAL LLP,1494387,39604.15,"39,604.15"
Department of Health,East Sussex Healthcare NHS Trust,09/03/2023,CAPITAL EXPEND BUILDINGS,Other Central,PD HARRIS LTD,1494407,39136,"46,963.20"
Department of Health,East Sussex Healthcare NHS Trust,09/03/2023,STOCK-ASCRIBE CONQUEST,Pharmacy Stock,BATH ASU,1758334,34306.63,"34,306.63"
Department of Health,East Sussex Healthcare NHS Trust,09/03/2023,TRAINING COURSE FEES-OTHER,Corporate Services,UNIVERSITY OF BRIGHTON,1930818,28392,"28,392.00"
Department of Health,East Sussex Healthcare NHS Trust,09/03/2023,STOCK-ASCRIBE CONQUEST,Pharmacy Stock,BATH ASU,12088253,37185.48,"37,185.48"
Department of Health,East Sussex Healthcare NHS Trust,09/03/2023,STOCK-ASCRIBE CONQUEST,Pharmacy Stock,BATH ASU,12088254,29864.51,"29,864.51"
Department of Health,East Sussex Healthcare NHS Trust,09/03/2023,STOCK-ASCRIBE CONQUEST,Pharmacy Stock,BAYER PLC,12088267,125918.93,"125,918.93"
Department of Health,East Sussex Healthcare NHS Trust,09/03/2023,STOCK-ASCRIBE CONQUEST,Pharmacy Stock,AAH PHARMACEUTICALS LTD,12088326,28895.58,"28,895.58"
Department of Health,East Sussex Healthcare NHS Trust,09/03/2023,STOCK-ASCRIBE CONQUEST,Pharmacy Stock,BATH ASU,12088533,35769.6,"35,769.60"
Department of Health,East Sussex Healthcare NHS Trust,09/03/2023,CAPITAL EXPEND BUILDINGS,Other Central,TELEFONICA TECH UK LIMITED,26089140,273511.23,"273,511.23"
Department of Health,East Sussex Healthcare NHS Trust,09/03/2023,CAPITAL EXPEND I.T.,Other Central,CDW LIMITED,26089554,104611.5,"132,539.22"
Department of Health,East Sussex Healthcare NHS Trust,09/03/2023,CAPITAL EXPEND I.T.,Other Central,CDW LIMITED,26089554,27927.72,"132,539.22"
Department of Health,East Sussex Healthcare NHS Trust,09/03/2023,CAPITAL EXPEND I.T.,Other Central,TELEFONICA TECH UK LIMITED,26089611,43991.65,"233,595.37"
Department of Health,East Sussex Healthcare NHS Trust,09/03/2023,CAPITAL EXPEND I.T.,Other Central,TELEFONICA TECH UK LIMITED,26089611,136779.46,"233,595.37"
Department of Health,East Sussex Healthcare NHS Trust,09/03/2023,CAPITAL EXPEND BUILDINGS,Other Central,TELEFONICA TECH UK LIMITED,26089611,52824.26,"233,595.37"
Department of Health,East Sussex Healthcare NHS Trust,09/03/2023,CAPITAL EXPEND I.T.,Other Central,TELEFONICA TECH UK LIMITED,26089783,84845.32,"84,845.32"
Department of Health,East Sussex Healthcare NHS Trust,09/03/2023,CONTRACT-SECURITY,Commercial,CONTINENTAL FACILITIES MANAGEMENT GROUP,26090476,26928,"32,313.60"
Department of Health,East Sussex Healthcare NHS Trust,09/03/2023,CARBON & ENERGY FUND,Commercial,LOW CARBON SOLUTIONS LTD(PRUDENTIAL TRUS,26090991,107619.37,"107,619.37"
Department of Health,East Sussex Healthcare NHS Trust,09/03/2023,AGENCY ADMIN & CLERICAL,Corporate Services,HUNTER HEALTHCARE RESOURCING LTD,80078863,28980,"28,980.00"
Department of Health,East Sussex Healthcare NHS Trust,09/03/2023,AGENCY NURSE - UNQUALIFIED,Integrated Care,MINERVA NURSING,80079726,56059.48,"66,582.28"
Department of Health,East Sussex Healthcare NHS Trust,15/03/2023,PROFESSIONAL FEES,Corporate Services,LIAISON FINANCIAL SERVICES LTD,1494888,4523.92,"110,330.22"
Department of Health,East Sussex Healthcare NHS Trust,15/03/2023,AGENCY DIRECT ENGAGEMENT,Other Central,LIAISON FINANCIAL SERVICES LTD,1494888,104901.52,"110,330.22"
Department of Health,East Sussex Healthcare NHS Trust,16/03/2023,NHS SUPPLY CHAIN CREDITORS,Cross Site,NHS SUPPLY CHAIN,158336,238082.83,"238,082.83"
Department of Health,East Sussex Healthcare NHS Trust,16/03/2023,BLOOD PRODUCTS - NBS ST CONTRA,Integrated Care,NHS BLOOD AND TRANSPLANT (NHSBT),158486,53475.52,"58,015.37"
Department of Health,East Sussex Healthcare NHS Trust,16/03/2023,BLOOD PRODUCTS - NBS ST CONTRA,Integrated Care,NHS BLOOD AND TRANSPLANT (NHSBT),158486,4539.85,"58,015.37"
Department of Health,East Sussex Healthcare NHS Trust,16/03/2023,SA-FPC REF FP10S,Cross Site,NHS BUSINESS SERVICES AUTHORITY,158525,91743.24,"91,743.24"
Department of Health,East Sussex Healthcare NHS Trust,16/03/2023,CONT.MAIN-MED & SURG EQUIP,Integrated Care,NHS SUPPLY CHAIN (MAIDSTONE),158530,39946.28,"47,935.44"
Department of Health,East Sussex Healthcare NHS Trust,16/03/2023,NHS SUPPLY CHAIN CREDITORS,Cross Site,NHS SUPPLY CHAIN,158533,292112.29,"292,112.29"
Department of Health,East Sussex Healthcare NHS Trust,16/03/2023,NHS SUPPLY CHAIN CREDITORS,Cross Site,NHS SUPPLY CHAIN,158559,206054.18,"206,054.18"
Department of Health,East Sussex Healthcare NHS Trust,16/03/2023,NHS SUPPLY CHAIN CREDITORS,Cross Site,NHS SUPPLY CHAIN,158560,147783.65,"147,783.65"
Department of Health,East Sussex Healthcare NHS Trust,16/03/2023,CAPITAL EXPEND BUILDINGS,Other Central,SOUTHERN COMMERCIAL SALES LTD,1494243,28392,"28,392.00"
Department of Health,East Sussex Healthcare NHS Trust,16/03/2023,CAPITAL EXPEND BUILDINGS,Other Central,PD HARRIS LTD,1494480,49899.52,"59,879.42"
Department of Health,East Sussex Healthcare NHS Trust,16/03/2023,CAPITAL EXPEND BUILDINGS,Other Central,BOOKER & BEST LIMITED,1494499,229827.31,"275,792.77"
Department of Health,East Sussex Healthcare NHS Trust,16/03/2023,CARBON & ENERGY FUND,Commercial,LOW CARBON SOLUTIONS LTD(PRUDENTIAL TRUS,1494507,107259.37,"107,259.37"
Department of Health,East Sussex Healthcare NHS Trust,16/03/2023,CONTRACT VEHICLE MAINTENANCE,Commercial,FAROL LTD,1494539,1254,"37,794.00"
Department of Health,East Sussex Healthcare NHS Trust,16/03/2023,CAPITAL EXPENDITURE TRANSPORT,Other Central,FAROL LTD,1494539,36540,"37,794.00"
Department of Health,East Sussex Healthcare NHS Trust,16/03/2023,CAPITAL EXPEND BUILDINGS,Other Central,PD HARRIS LTD,1494594,129416.53,"155,299.84"
Department of Health,East Sussex Healthcare NHS Trust,16/03/2023,CAPITAL EXPEND BUILDINGS,Other Central,PD HARRIS LTD,1494598,47708,"57,249.60"
Department of Health,East Sussex Healthcare NHS Trust,16/03/2023,SLA NHS PROPERTY SERVICES,Commercial,NHS PROPERTY SERVICES LTD,1494640,2261696.03,"2,261,696.03"
Department of Health,East Sussex Healthcare NHS Trust,16/03/2023,PROVISIONS - STEAMPLICITY,Commercial,THE CUISINE CENTRE,1560476,41667.9,"41,667.90"
Department of Health,East Sussex Healthcare NHS Trust,16/03/2023,PROVISIONS - STEAMPLICITY,Commercial,THE CUISINE CENTRE,1560477,37576.5,"37,576.50"
Department of Health,East Sussex Healthcare NHS Trust,16/03/2023,STOCK-ASCRIBE CONQUEST,Pharmacy Stock,BAYER PLC,12088641,125918.93,"125,918.93"
Department of Health,East Sussex Healthcare NHS Trust,16/03/2023,STOCK-ASCRIBE CONQUEST,Pharmacy Stock,JANSSEN-CILAG LTD,12088663,35419.32,"35,419.32"
Department of Health,East Sussex Healthcare NHS Trust,16/03/2023,STOCK-ASCRIBE CONQUEST,Pharmacy Stock,ALLIANCE HEALTHCARE (DISTRIBUTION) LTD,12088828,33061.55,"33,061.55"
Department of Health,East Sussex Healthcare NHS Trust,16/03/2023,STOCK-ASCRIBE EDGH,Pharmacy Stock,ALLIANCE HEALTHCARE (DISTRIBUTION) LTD,13144294,34755.08,"34,755.08"
Department of Health,East Sussex Healthcare NHS Trust,16/03/2023,STOCK-ASCRIBE EDGH,Pharmacy Stock,CSL BEHRING,13144328,102582,"102,582.00"
Department of Health,East Sussex Healthcare NHS Trust,16/03/2023,STOCK-ASCRIBE EDGH,Pharmacy Stock,NOVARTIS PHARMACEUTICALS UK LTD,13144334,31161.6,"31,161.60"
Department of Health,East Sussex Healthcare NHS Trust,16/03/2023,STOCK-ASCRIBE EDGH,Pharmacy Stock,JANSSEN-CILAG LTD,13144368,33532.25,"33,532.25"
Department of Health,East Sussex Healthcare NHS Trust,16/03/2023,STOCK-ASCRIBE EDGH,Pharmacy Stock,ALLOGA UK LTD,13144397,30600,"30,600.00"
Department of Health,East Sussex Healthcare NHS Trust,16/03/2023,PROFESSIONAL FEES,Commercial,SALISBURY TRADING LIMITED,26088631,126585.96,"151,903.15"
Department of Health,East Sussex Healthcare NHS Trust,16/03/2023,PROFESSIONAL FEES,Commercial,SALISBURY TRADING LIMITED,26091411,114887.27,"137,864.72"
Department of Health,East Sussex Healthcare NHS Trust,16/03/2023,CAPITAL EXPEND I.T.,Other Central,TELEFONICA TECH UK LIMITED,26091414,60338.93,"60,338.93"
Department of Health,East Sussex Healthcare NHS Trust,16/03/2023,CONTRACT-SCANNING SERVICE,Integrated Care,INHEALTH LIMITED,26091499,171669.64,"206,003.57"
Department of Health,East Sussex Healthcare NHS Trust,16/03/2023,CAPITAL EXPEND PLANT&MACHINERY,Other Central,HUNTLEIGH HEALTHCARE LTD,26091612,31741.68,"31,741.68"
Department of Health,East Sussex Healthcare NHS Trust,16/03/2023,CONTRACT - MANAGEMENT FEE,Integrated Care,ROCHE DIAGNOSTICS LTD,26091648,404886,"404,886.00"
Department of Health,East Sussex Healthcare NHS Trust,16/03/2023,TESTS SENT TO NON NHS LABS,Integrated Care,SYNNOVIS,26092067,100000,"100,000.00"
Department of Health,East Sussex Healthcare NHS Trust,16/03/2023,CAPITAL EXPEND PLANT&MACHINERY,Other Central,ALCON EYE CARE UK LTD,26092694,74110.56,"74,110.56"
Department of Health,East Sussex Healthcare NHS Trust,16/03/2023,AGENCY NURSE - UNQUALIFIED,Integrated Care,MINERVA NURSING,80079774,53036.7,"63,093.30"
Department of Health,East Sussex Healthcare NHS Trust,22/03/2023,PROFESSIONAL FEES,Corporate Services,LIAISON FINANCIAL SERVICES LTD,1494889,4537.88,"111,256.93"
Department of Health,East Sussex Healthcare NHS Trust,22/03/2023,AGENCY DIRECT ENGAGEMENT,Other Central,LIAISON FINANCIAL SERVICES LTD,1494889,105811.47,"111,256.93"
Department of Health,East Sussex Healthcare NHS Trust,23/03/2023,SR UNIVERSITY HOSPS SUSSEX FT,Integrated Care,UNIVERSITY HOSPITALS SUSSEX  NHS FT,158468,31687.5,"31,687.50"
Department of Health,East Sussex Healthcare NHS Trust,23/03/2023,SR NHS SBS,Corporate Services,NHS SHARED BUSINESS SERVICES,158571,29444.67,"35,333.60"
Department of Health,East Sussex Healthcare NHS Trust,23/03/2023,NHS SUPPLY CHAIN CREDITORS,Cross Site,NHS SUPPLY CHAIN,158581,185038.52,"185,038.52"
Department of Health,East Sussex Healthcare NHS Trust,23/03/2023,NHS SUPPLY CHAIN CREDITORS,Cross Site,NHS SUPPLY CHAIN,158583,188408.86,"188,408.86"
Department of Health,East Sussex Healthcare NHS Trust,23/03/2023,SR UNIVERSITY HOSPS SUSSEX FT,Integrated Care,UNIVERSITY HOSPITALS SUSSEX  NHS FT,158605,38983.07,"77,966.13"
Department of Health,East Sussex Healthcare NHS Trust,23/03/2023,SR UNIVERSITY HOSPS SUSSEX FT,Integrated Care,UNIVERSITY HOSPITALS SUSSEX  NHS FT,158605,38983.06,"77,966.13"
Department of Health,East Sussex Healthcare NHS Trust,23/03/2023,SR UNIVERSITY HOSPS SUSSEX FT,Integrated Care,UNIVERSITY HOSPITALS SUSSEX  NHS FT,158606,38967.5,"38,967.50"
Department of Health,East Sussex Healthcare NHS Trust,23/03/2023,NHS SUPPLY CHAIN CREDITORS,Cross Site,NHS SUPPLY CHAIN,158616,168169.97,"168,169.97"
Department of Health,East Sussex Healthcare NHS Trust,23/03/2023,NHS SUPPLY CHAIN CREDITORS,Cross Site,NHS SUPPLY CHAIN,158617,185105.34,"185,105.34"
Department of Health,East Sussex Healthcare NHS Trust,23/03/2023,SR UNIVERSITY HOSPS SUSSEX FT,Integrated Care,UNIVERSITY HOSPITALS SUSSEX  NHS FT,158619,42412.5,"42,412.50"
Department of Health,East Sussex Healthcare NHS Trust,23/03/2023,SP RDR SUSSEX COMMUNITY NHSFT,Corporate Services,SUSSEX COMMUNITY NHS FOUNDATION TRUST,158620,95000,"95,000.00"
Department of Health,East Sussex Healthcare NHS Trust,23/03/2023,SR NHS SBS,Corporate Services,NHS SHARED BUSINESS SERVICES,158621,29444.67,"35,333.60"
Department of Health,East Sussex Healthcare NHS Trust,23/03/2023,SR NHS SBS,Corporate Services,NHS SHARED BUSINESS SERVICES,158622,29444.67,"35,333.60"
Department of Health,East Sussex Healthcare NHS Trust,23/03/2023,SR NHS SBS,Corporate Services,NHS SHARED BUSINESS SERVICES,158623,29444.67,"35,333.60"
Department of Health,East Sussex Healthcare NHS Trust,23/03/2023,SR NHS SBS,Corporate Services,NHS SHARED BUSINESS SERVICES,158625,29444.67,"35,333.60"
Department of Health,East Sussex Healthcare NHS Trust,23/03/2023,CAPITAL EXPENDITURE PSDS 3,Other Central,VEOLIA ENERGY & UTILITY SERVICES UK PLC,1493520,4060379.54,"4,060,379.54"
Department of Health,East Sussex Healthcare NHS Trust,23/03/2023,PROFESSIONAL FEES,Integrated Care,ICS OPERATIONS LTD TA XYLA ELECTIVE CARE,1494106,59580.52,"59,580.52"
Department of Health,East Sussex Healthcare NHS Trust,23/03/2023,PROFESSIONAL FEES,Integrated Care,ICS OPERATIONS LTD TA XYLA ELECTIVE CARE,1494107,27088.08,"27,088.08"
Department of Health,East Sussex Healthcare NHS Trust,23/03/2023,CAPITAL EXPEND BUILDINGS,Other Central,PD HARRIS LTD,1494649,25821,"30,985.20"
Department of Health,East Sussex Healthcare NHS Trust,23/03/2023,CAPITAL EXPEND BUILDINGS,Other Central,PD HARRIS LTD,1494651,42219.24,"50,663.09"
Department of Health,East Sussex Healthcare NHS Trust,23/03/2023,ELECTRICITY,Commercial,EDF ENERGY,1494668,70424.82,"70,424.82"
Department of Health,East Sussex Healthcare NHS Trust,23/03/2023,WATER-RATES & METERED,Commercial,SMARTA WATER LIMITED,1494669,45700.26,"45,700.26"
Department of Health,East Sussex Healthcare NHS Trust,23/03/2023,WATER-RATES & METERED,Commercial,SMARTA WATER LIMITED,1494670,33019.88,"33,019.88"
Department of Health,East Sussex Healthcare NHS Trust,23/03/2023,PROFESSIONAL FEES,Corporate Services,CLOUD 21,1494768,200000,"240,000.00"
Department of Health,East Sussex Healthcare NHS Trust,23/03/2023,SX COMMUNITY DERMATOLOGY SERV,Integrated Care,SUSSEX COMMUNITY DERMATOLOGY SERVICE,1494771,82060,"83,441.10"
Department of Health,East Sussex Healthcare NHS Trust,23/03/2023,CONTRACTED-OUT H.CARE SERVICES,Integrated Care,SUSSEX COMMUNITY DERMATOLOGY SERVICE,1494771,1381.1,"83,441.10"
Department of Health,East Sussex Healthcare NHS Trust,23/03/2023,WATER-RATES & METERED,Commercial,SMARTA WATER LIMITED,1494774,34114.85,"34,114.85"
Department of Health,East Sussex Healthcare NHS Trust,23/03/2023,CAPITAL EXPEND BUILDINGS,Other Central,HUGHES & SALVIDGE LTD,1494787,49985.9,"49,985.90"
Department of Health,East Sussex Healthcare NHS Trust,23/03/2023,CAPITAL EXPEND BUILDINGS,Other Central,PD HARRIS LTD,1494794,21398.71,"25,678.45"
Department of Health,East Sussex Healthcare NHS Trust,23/03/2023,CAPITAL EXPEND BUILDINGS,Other Central,PD HARRIS LTD,1494802,24409.97,"29,291.96"
Department of Health,East Sussex Healthcare NHS Trust,23/03/2023,CAPITAL EXPEND BUILDINGS,Other Central,PD HARRIS LTD,1494819,36335.67,"43,602.80"
Department of Health,East Sussex Healthcare NHS Trust,23/03/2023,CAPITAL EXPEND BUILDINGS,Other Central,PD HARRIS LTD,1494820,50452.15,"60,542.58"
Department of Health,East Sussex Healthcare NHS Trust,23/03/2023,STOCK-ASCRIBE CONQUEST,Pharmacy Stock,BATH ASU,12088958,35811.6,"35,811.60"
Department of Health,East Sussex Healthcare NHS Trust,23/03/2023,STOCK-ASCRIBE CONQUEST,Pharmacy Stock,BAYER PLC,12089075,125918.93,"125,918.93"
Department of Health,East Sussex Healthcare NHS Trust,23/03/2023,STOCK-ASCRIBE EDGH,Pharmacy Stock,ALLIANCE HEALTHCARE (DISTRIBUTION) LTD,13144497,28821.56,"28,821.56"
Department of Health,East Sussex Healthcare NHS Trust,23/03/2023,STOCK-ASCRIBE EDGH,Pharmacy Stock,ALLIANCE HEALTHCARE (DISTRIBUTION) LTD,13144499,34283.61,"34,283.61"
Department of Health,East Sussex Healthcare NHS Trust,23/03/2023,COMPUTER MAINT - SOFTWARE,Corporate Services,ANS GROUP LTD,26087420,24851.48,"29,821.78"
Department of Health,East Sussex Healthcare NHS Trust,23/03/2023,CAPITAL EXPENDITURE PSDS 3,Other Central,VEOLIA ENERGY & UTILITY SERVICES UK PLC,26091205,3383650,"4,060,380.00"
Department of Health,East Sussex Healthcare NHS Trust,23/03/2023,COMPUTER MAINT - SOFTWARE,Corporate Services,ANS GROUP LTD,26091237,24984.23,"29,981.08"
Department of Health,East Sussex Healthcare NHS Trust,23/03/2023,PROFESSIONAL FEES,Integrated Care,ID MEDICAL GROUP LIMITED,26092273,90752,"90,752.00"
Department of Health,East Sussex Healthcare NHS Trust,23/03/2023,SURGICAL INSTRUMENTS,Integrated Care,INTUITIVE SURGICAL LIMITED,26092902,20751,"25,200.60"
Department of Health,East Sussex Healthcare NHS Trust,23/03/2023,DISPOSABLE DRAPES,Integrated Care,INTUITIVE SURGICAL LIMITED,26092902,4449.6,"25,200.60"
Department of Health,East Sussex Healthcare NHS Trust,23/03/2023,PACEMAKERS,Integrated Care,ABBOTT MEDICAL U.K. LIMITED,26092931,27000,"27,000.00"
Department of Health,East Sussex Healthcare NHS Trust,23/03/2023,COMPUTER SOFTWARE,Corporate Services,SOFTCAT PLC,26092940,187500,"558,000.00"
Department of Health,East Sussex Healthcare NHS Trust,23/03/2023,COMPUTER MAINT - SOFTWARE,Corporate Services,SOFTCAT PLC,26092940,197500,"558,000.00"
Department of Health,East Sussex Healthcare NHS Trust,23/03/2023,CAPITAL EXPEND I.T.,Other Central,SOFTCAT PLC,26092940,80000,"558,000.00"
Department of Health,East Sussex Healthcare NHS Trust,23/03/2023,CAPITAL EXPEND I.T.,Other Central,IDEAGEN GAEL LTD,26093224,73419.79,"88,103.74"
Department of Health,East Sussex Healthcare NHS Trust,23/03/2023,CONTRACT-SECURITY,Commercial,CONTINENTAL FACILITIES MANAGEMENT GROUP,26093553,32800.83,"39,360.99"
Department of Health,East Sussex Healthcare NHS Trust,23/03/2023,AGENCY ADMIN & CLERICAL,Corporate Services,HUNTER HEALTHCARE RESOURCING LTD,80079785,27600,"27,600.00"
Department of Health,East Sussex Healthcare NHS Trust,23/03/2023,AGENCY ADMIN & CLERICAL,Corporate Services,HUNTER HEALTHCARE RESOURCING LTD,80079834,31680,"31,680.00"
Department of Health,East Sussex Healthcare NHS Trust,23/03/2023,AGENCY NURSE - UNQUALIFIED,Integrated Care,MINERVA NURSING,80080094,55072.88,"65,595.68"
Department of Health,East Sussex Healthcare NHS Trust,29/03/2023,CAPITAL EXPEND BUILDINGS,Other Central,HORIZON FOODSERVICE EQUIPMENT,1494677,83823.6,"83,823.60"
Department of Health,East Sussex Healthcare NHS Trust,29/03/2023,COMPUTER MAINT - SOFTWARE,Corporate Services,BRITISH TELECOMMUNICATIONS PLC,1494732,145775.94,"174,931.13"
Department of Health,East Sussex Healthcare NHS Trust,29/03/2023,HEARING AIDS & BATTERIES,Integrated Care,ACTION FOR DEAFNESS,1494785,16800,"42,800.00"
Department of Health,East Sussex Healthcare NHS Trust,29/03/2023,PROFESSIONAL FEES,Integrated Care,ACTION FOR DEAFNESS,1494785,26000,"42,800.00"
Department of Health,East Sussex Healthcare NHS Trust,29/03/2023,CAPITAL EXPEND BUILDINGS,Other Central,PORTAKABIN LIMITED,1494809,84298.8,"84,298.80"
Department of Health,East Sussex Healthcare NHS Trust,29/03/2023,CAPITAL EXPEND BUILDINGS,Other Central,PD HARRIS LTD,1494870,23711.68,"28,454.02"
Department of Health,East Sussex Healthcare NHS Trust,29/03/2023,ELECTRO MEDICAL EQUIPMENT,Integrated Care,BECTON DICKINSON (CME) UK LIMITED,1494897,64800,"64,800.00"
Department of Health,East Sussex Healthcare NHS Trust,29/03/2023,CAPITAL EXPEND BUILDINGS,Other Central,PD HARRIS LTD,1494904,35765.87,"42,919.04"
Department of Health,East Sussex Healthcare NHS Trust,29/03/2023,CAPITAL EXPEND BUILDINGS,Other Central,PD HARRIS LTD,1494905,56529.74,"67,835.69"
Department of Health,East Sussex Healthcare NHS Trust,29/03/2023,CAPITAL EXPEND BUILDINGS,Other Central,PD HARRIS LTD,1494913,47796.93,"57,356.32"
Department of Health,East Sussex Healthcare NHS Trust,29/03/2023,CAPITAL EXPEND BUILDINGS,Other Central,PD HARRIS LTD,1494914,89706.59,"89,706.59"
Department of Health,East Sussex Healthcare NHS Trust,29/03/2023,CAPITAL EXPEND BUILDINGS,Other Central,PD HARRIS LTD,1494915,29833.74,"35,800.49"
Department of Health,East Sussex Healthcare NHS Trust,29/03/2023,CAPITAL EXPEND BUILDINGS,Other Central,VEOLIA ENERGY & UTILITY SERVICES UK PLC,1494917,161468.4,"161,468.40"
Department of Health,East Sussex Healthcare NHS Trust,29/03/2023,CAPITAL EXPENDITURE PSDS 3,Other Central,VEOLIA ENERGY & UTILITY SERVICES UK PLC,1494918,1284862.8,"1,284,862.80"
Department of Health,East Sussex Healthcare NHS Trust,29/03/2023,CAPITAL EXPEND BUILDINGS,Other Central,EASTBOURNE ELECTRICAL LLP,1495026,44144.64,"52,973.57"
Department of Health,East Sussex Healthcare NHS Trust,29/03/2023,POSTAGE - FRANKING MACHINE,Commercial,PITNEY BOWES LTD,1495068,4073.09,"34,074.09"
Department of Health,East Sussex Healthcare NHS Trust,29/03/2023,POSTAGE - FRANKING MACHINE,Commercial,PITNEY BOWES LTD,1495068,30001,"34,074.09"
Department of Health,East Sussex Healthcare NHS Trust,29/03/2023,CAPITAL EXPEND BUILDINGS,Other Central,AECOM,1495071,31615,"37,938.00"
Department of Health,East Sussex Healthcare NHS Trust,29/03/2023,CAPITAL EXPEND BUILDINGS,Other Central,GM MONK LTD,1495073,35079.86,"35,079.86"
Department of Health,East Sussex Healthcare NHS Trust,29/03/2023,CAPITAL EXPEND I.T.,Other Central,CDW LIMITED,1495074,352910.16,"352,910.16"
Department of Health,East Sussex Healthcare NHS Trust,29/03/2023,CAPITAL EXPEND BUILDINGS,Other Central,PD HARRIS LTD,1495088,42127.7,"50,553.24"
Department of Health,East Sussex Healthcare NHS Trust,29/03/2023,PROFESSIONAL FEES,Corporate Services,LIAISON FINANCIAL SERVICES LTD,1495111,3733.11,"90,839.23"
Department of Health,East Sussex Healthcare NHS Trust,29/03/2023,AGENCY DIRECT ENGAGEMENT,Other Central,LIAISON FINANCIAL SERVICES LTD,1495111,86359.5,"90,839.23"
Department of Health,East Sussex Healthcare NHS Trust,29/03/2023,STOCK-ASCRIBE CONQUEST,Pharmacy Stock,AAH PHARMACEUTICALS LTD,12089250,28895.58,"28,895.58"
Department of Health,East Sussex Healthcare NHS Trust,29/03/2023,STOCK-ASCRIBE EDGH,Pharmacy Stock,AAH PHARMACEUTICALS LTD,13144673,25018.37,"25,018.37"
Department of Health,East Sussex Healthcare NHS Trust,29/03/2023,COMPUTER SOFTWARE,Corporate Services,ASSISTA SOFTWARE LTD,26089709,41510,"49,812.00"
Department of Health,East Sussex Healthcare NHS Trust,29/03/2023,PROFESSIONAL FEES,Corporate Services,INSIGHT DIRECT (UK) LTD,26092907,24187.5,"29,025.00"
Department of Health,East Sussex Healthcare NHS Trust,29/03/2023,CAPITAL EXPEND I.T.,Other Central,INSIGHT DIRECT (UK) LTD,26092909,53750,"64,500.00"
Department of Health,East Sussex Healthcare NHS Trust,29/03/2023,CAPITAL EXPEND I.T.,Other Central,IDEAGEN GAEL LTD,26093227,34319.9,"41,183.87"
Department of Health,East Sussex Healthcare NHS Trust,29/03/2023,COMPUTER MAINT - SOFTWARE,Corporate Services,ALLSCRIPTS HEALTHCARE (IT) UK LTD,26093274,73850.96,"88,621.15"
Department of Health,East Sussex Healthcare NHS Trust,29/03/2023,CONTRACT-SECURITY,Commercial,CONTINENTAL FACILITIES MANAGEMENT GROUP,26093552,22179,"26,614.80"
Department of Health,East Sussex Healthcare NHS Trust,29/03/2023,SX COMMUNITY DERMATOLOGY SERV,Integrated Care,SUSSEX COMMUNITY DERMATOLOGY SERVICE,26093615,80890,"82,498.47"
Department of Health,East Sussex Healthcare NHS Trust,29/03/2023,CONTRACTED-OUT H.CARE SERVICES,Integrated Care,SUSSEX COMMUNITY DERMATOLOGY SERVICE,26093615,1608.47,"82,498.47"
Department of Health,East Sussex Healthcare NHS Trust,29/03/2023,PROFESSIONAL FEES,Integrated Care,ICS OPERATIONS LTD TA XYLA ELECTIVE CARE,26093624,38797.49,"38,797.49"
Department of Health,East Sussex Healthcare NHS Trust,29/03/2023,CAPITAL EXPEND I.T.,Other Central,STREETS HEAVER COMPUTER SYSTEMS LTD,26093810,110142.75,"132,171.30"
Department of Health,East Sussex Healthcare NHS Trust,29/03/2023,AGENCY NURSE - UNQUALIFIED,Integrated Care,MINERVA NURSING,80080379,47412.47,"56,403.47"
Department of Health,East Sussex Healthcare NHS Trust,31/03/2023,CAPITAL EXPEND PLANT&MACHINERY,Other Central,NHS SUPPLY CHAIN (ALFRETON),158671,821004.11,"821,004.11"
Department of Health,East Sussex Healthcare NHS Trust,31/03/2023,NHS SUPPLY CHAIN CREDITORS,Cross Site,NHS SUPPLY CHAIN,158672,151762.32,"151,762.32"
Department of Health,East Sussex Healthcare NHS Trust,31/03/2023,CAPITAL EXPEND PLANT&MACHINERY,Other Central,AGFA HEALTHCARE UK LTD,1495070,76404.36,"76,404.36"
Department of Health,East Sussex Healthcare NHS Trust,31/03/2023,CAPITAL EXPEND I.T.,Other Central,TELEFONICA TECH UK LIMITED,1495076,2618.38,"95,074.40"
Department of Health,East Sussex Healthcare NHS Trust,31/03/2023,CAPITAL EXPEND I.T.,Other Central,TELEFONICA TECH UK LIMITED,1495076,92456.02,"95,074.40"
Department of Health,East Sussex Healthcare NHS Trust,31/03/2023,CAPITAL EXPEND I.T.,Other Central,TELEFONICA TECH UK LIMITED,1495077,10637.83,"253,702.01"
Department of Health,East Sussex Healthcare NHS Trust,31/03/2023,CAPITAL EXPEND I.T.,Other Central,TELEFONICA TECH UK LIMITED,1495077,243064.18,"253,702.01"
Department of Health,East Sussex Healthcare NHS Trust,31/03/2023,CAPITAL EXPEND PLANT&MACHINERY,Other Central,LOCKHART CATERING EQUIPMENT,1495091,89100,"89,100.00"
Department of Health,East Sussex Healthcare NHS Trust,31/03/2023,CAPITAL EXPEND PLANT&MACHINERY,Other Central,LOCKHART CATERING EQUIPMENT,1495093,89100,"89,100.00"
Department of Health,East Sussex Healthcare NHS Trust,31/03/2023,CAPITAL EXPEND BUILDINGS,Other Central,BOURNVILLE CATERING EQUIPMENT,1495095,31350,"31,350.00"
Department of Health,East Sussex Healthcare NHS Trust,31/03/2023,CAPITAL EXPEND BUILDINGS,Other Central,BOURNVILLE CATERING EQUIPMENT,1495096,45246,"45,246.00"
Department of Health,East Sussex Healthcare NHS Trust,31/03/2023,CAPITAL EXPEND BUILDINGS,Other Central,WASSENBURG MEDICAL DEVICES,1495099,230305,"230,305.00"
Department of Health,East Sussex Healthcare NHS Trust,31/03/2023,CAPITAL EXPEND BUILDINGS,Other Central,WASSENBURG MEDICAL DEVICES,1495102,37184.59,"37,184.59"
Department of Health,East Sussex Healthcare NHS Trust,31/03/2023,CAPITAL EXPEND BUILDINGS,Other Central,EASTBOURNE ELECTRICAL LLP,1495108,127252.14,"152,702.56"
Department of Health,East Sussex Healthcare NHS Trust,31/03/2023,CAPITAL EXPEND BUILDINGS,Other Central,EASTBOURNE ELECTRICAL LLP,1495109,50963.76,"61,156.53"
Department of Health,East Sussex Healthcare NHS Trust,31/03/2023,COMPUTER SOFTWARE,Corporate Services,PATIENTS KNOW BEST,1495119,248832,"248,832.00"
Department of Health,East Sussex Healthcare NHS Trust,31/03/2023,CAPITAL EXPEND I.T.,Other Central,IDEAL HEALTH CONSULTANTS LTD,1495121,76885.72,"76,885.72"
Department of Health,East Sussex Healthcare NHS Trust,31/03/2023,PROFESSIONAL FEES,Corporate Services,MY CLINICAL OUTCOMES,1495123,181875,"218,250.00"
Department of Health,East Sussex Healthcare NHS Trust,31/03/2023,CAPITAL EXPEND I.T.,Other Central,PURE DATA SOLUTIONS LIMITED,1495125,43453.8,"43,453.80"
Department of Health,East Sussex Healthcare NHS Trust,31/03/2023,CAPITAL EXPEND I.T.,Other Central,ASTEROS ADVISERS LIMITED,1495126,23940,"28,728.00"
Department of Health,East Sussex Healthcare NHS Trust,31/03/2023,PROFESSIONAL FEES,Integrated Care,EAST SUSSEX COUNTY COUNCIL,1495127,2950000,"2,950,000.00"
Department of Health,East Sussex Healthcare NHS Trust,31/03/2023,PROFESSIONAL FEES,Corporate Services,LIVEWORK STUDIO LTD,1495130,99475,"119,370.00"
Department of Health,East Sussex Healthcare NHS Trust,31/03/2023,CAP EXPEND INTANGIBLES,Other Central,CLOUD 21,1495146,80920,"97,104.00"
Department of Health,East Sussex Healthcare NHS Trust,31/03/2023,CAP EXPEND INTANGIBLES,Other Central,CLOUD 21,1495147,882000,"1,058,400.00"
Department of Health,East Sussex Healthcare NHS Trust,31/03/2023,CAPITAL EXPEND BUILDINGS,Other Central,BRIAN DUNCAN PLUMBING & HEATING LTD,1495156,42255.06,"50,706.07"
Department of Health,East Sussex Healthcare NHS Trust,31/03/2023,CAPITAL EXPEND BUILDINGS,Other Central,BOOKER & BEST LIMITED,1495198,84762.17,"101,714.60"
Department of Health,East Sussex Healthcare NHS Trust,31/03/2023,CAPITAL EXPEND BUILDINGS,Other Central,INTEGRATED HEALTH PROJECTS,1495206,3182444.88,"3,182,444.88"
Department of Health,East Sussex Healthcare NHS Trust,31/03/2023,CAPITAL EXPEND BUILDINGS,Other Central,BOOKER & BEST LIMITED,1495209,37052.58,"64,827.18"
Department of Health,East Sussex Healthcare NHS Trust,31/03/2023,CAPITAL EXPEND BUILDINGS,Other Central,BOOKER & BEST LIMITED,1495209,16970.07,"64,827.18"
Department of Health,East Sussex Healthcare NHS Trust,31/03/2023,CAPITAL EXPEND BUILDINGS,Other Central,AVINNY CONSULTING ENGINEERS,1495214,40990,"49,188.00"
Department of Health,East Sussex Healthcare NHS Trust,31/03/2023,PROFESSIONAL FEES,Corporate Services,THE ROYAL COLLEGE OF SURGEONS OF ENGLAND,1495223,39986.58,"39,986.58"
Department of Health,East Sussex Healthcare NHS Trust,31/03/2023,CAPITAL EXPEND BUILDINGS,Other Central,BOOKER & BEST LIMITED,1495224,44586.42,"53,503.70"
Department of Health,East Sussex Healthcare NHS Trust,31/03/2023,CAPITAL EXPEND BUILDINGS,Other Central,BOOKER & BEST LIMITED,1495227,45000,"54,000.00"
Department of Health,East Sussex Healthcare NHS Trust,31/03/2023,CAPITAL EXPEND BUILDINGS,Other Central,AECOM,1495228,25000,"30,000.00"
Department of Health,East Sussex Healthcare NHS Trust,31/03/2023,STOCK-ASCRIBE CONQUEST,Pharmacy Stock,BATH ASU,12089439,44829.66,"44,829.66"
Department of Health,East Sussex Healthcare NHS Trust,31/03/2023,STOCK-ASCRIBE EDGH,Pharmacy Stock,AAH PHARMACEUTICALS LTD,13144821,34328.42,"34,328.42"
Department of Health,East Sussex Healthcare NHS Trust,31/03/2023,CAPITAL EXPEND PLANT&MACHINERY,Other Central,CARL ZEISS LTD,26090372,47045.8,"56,454.96"
Department of Health,East Sussex Healthcare NHS Trust,31/03/2023,CAPITAL EXPEND FURN&FITTINGS,Other Central,BATES OFFICE SERVICES,26090733,28838.18,"28,838.18"
Department of Health,East Sussex Healthcare NHS Trust,31/03/2023,CAPITAL EXPEND BUILDINGS,Other Central,FAIRLAND CONTRACTORS,26091418,45950.92,"55,141.10"
Department of Health,East Sussex Healthcare NHS Trust,31/03/2023,CAPITAL EXPEND I.T.,Other Central,TELEFONICA TECH UK LIMITED,26093631,484792.26,"484,792.26"
